fUSD/lending_fUSD_20250215
["ID","MTS","AMOUNT","RATE_DAILY","PERIOD"]
[353171215,1739623845823,-502.92,0.0001128,2]
[353171216,1739623845834,-500.0,0.00011281,2]
[353171217,1739623845844,-500.0,0.00011281,2]
[353171218,1739623845854,-500.0,0.00011281,2]
[353171219,1739623845863,-500.0,0.00011281,2]
[353171220,1739623845876,-500.0,0.00011281,2]
[353171221,1739623845885,-500.0,0.00011281,2]
[353171222,1739623845895,-500.0,0.00011281,2]
[353171223,1739623845904,-500.0,0.00011281,2]
[353171224,1739623845914,-500.0,0.00011281,2]
[353171225,1739623845924,-500.0,0.00011281,2]
[353171226,1739623845933,-500.0,0.00011281,2]
[353171227,1739623845942,-500.0,0.00011281,2]
[353171228,1739623845951,-500.0,0.00011281,2]
[353171229,1739623845961,-500.0,0.00011281,2]
[353171230,1739623845971,-500.0,0.00011281,2]
[353171231,1739623845980,-500.0,0.00011281,2]
[353171232,1739623845990,-500.0,0.00011281,2]
[353171233,1739623846000,-619.36,0.00011281,2]
[353171234,1739623846009,-500.0,0.00011281,2]
[353171235,1739623846020,-500.0,0.00011281,2]
[353171236,1739623846029,-507.33,0.00011281,2]
[353171237,1739623846039,-500.0,0.00011281,2]
[353171238,1739623846048,-500.0,0.00011281,2]
[353171239,1739623846058,-569.51,0.00011281,2]
[353171240,1739623846068,-500.0,0.00011281,2]
[353171241,1739623846077,-500.0,0.00011281,2]
[353171242,1739623846089,-500.0,0.00011281,2]
[353171243,1739623846099,-500.0,0.00011281,2]
[353171244,1739623846108,-377.43123833,0.00011281,2]
[353171245,1739623846139,-122.56876167,0.00011281,2]
[353171246,1739623846148,-500.0,0.00011281,2]
[353171247,1739623846158,-305.09067833,0.00011281,2]
[353171248,1739623846369,-194.90932167,0.00011281,2]
[353171249,1739623846379,-500.0,0.00011281,2]
[353171250,1739623846389,-500.0,0.00011281,2]
[353171251,1739623846398,-500.0,0.00011281,2]
[353171252,1739623846408,-500.0,0.00011281,2]
[353171253,1739623846417,-532.73,0.00011281,2]
[353171254,1739623846427,-1680.48,0.00011281,2]
[353171255,1739623846436,-500.0,0.00011281,2]
[353171256,1739623846446,-500.0,0.00011281,2]
[353171257,1739623846455,-500.0,0.00011281,2]
[353171258,1739623846465,-500.0,0.00011281,2]
[353171259,1739623846475,-500.0,0.00011281,2]
[353171260,1739623846485,-520.35,0.00011281,2]
[353171261,1739623846495,-500.0,0.00011281,2]
[353171262,1739623846504,-500.0,0.00011281,2]
[353171263,1739623846514,-500.0,0.00011281,2]
[353171264,1739623846523,-500.0,0.00011281,2]
[353171265,1739623846533,-593.95,0.00011281,2]
[353171266,1739623846543,-500.0,0.00011281,2]
[353171267,1739623846553,-500.0,0.00011281,2]
[353171268,1739623846563,-500.0,0.00011281,2]
[353171269,1739623846573,-500.0,0.00011281,2]
[353171270,1739623846582,-500.0,0.00011281,2]
[353171271,1739623846593,-500.0,0.00011281,2]
[353171272,1739623846602,-530.77,0.00011281,2]
[353171273,1739623846612,-500.0,0.00011281,2]
[353171274,1739623846622,-500.0,0.00011281,2]
[353171275,1739623846632,-500.0,0.00011281,2]
[353171276,1739623846642,-500.0,0.00011281,2]
[353171277,1739623846651,-500.0,0.00011281,2]
[353171278,1739623846661,-500.0,0.00011281,2]
[353171279,1739623846670,-500.0,0.00011281,2]
[353171280,1739623846679,-500.0,0.00011281,2]
[353171281,1739623846689,-500.0,0.00011281,2]
[353171282,1739623846698,-500.0,0.00011281,2]
[353171283,1739623846707,-500.0,0.00011281,2]
[353171284,1739623846716,-500.0,0.00011281,2]
[353171285,1739623846726,-500.0,0.00011281,2]
[353171286,1739623846736,-500.0,0.00011281,2]
[353171287,1739623846746,-500.0,0.00011281,2]
[353171288,1739623846755,-500.0,0.00011281,2]
[353171289,1739623846764,-500.0,0.00011281,2]
[353171290,1739623846774,-500.0,0.00011281,2]
[353171291,1739623846785,-500.0,0.00011281,2]
[353171292,1739623846800,-522.03,0.00011281,2]
[353171293,1739623846810,-235.2,0.00011281,2]
[353171294,1739623846820,-580.96,0.00011281,2]
[353171295,1739623846831,-500.0,0.00011281,2]
[353171296,1739623846842,-500.0,0.00011281,2]
[353171297,1739623846852,-500.0,0.00011281,2]
[353171298,1739623846861,-500.0,0.00011281,2]
[353171299,1739623846872,-500.0,0.00011281,2]
[353171300,1739623846882,-686.27,0.00011281,2]
[353171301,1739623846892,-500.0,0.00011281,2]
[353171302,1739623846902,-500.0,0.00011281,2]
[353171303,1739623846912,-500.0,0.00011281,2]
[353171304,1739623846922,-569.38,0.00011281,2]
[353171305,1739623846933,-1321.67,0.00011281,2]
[353171306,1739623846943,-696.74,0.00011281,2]
[353171307,1739623846953,-500.0,0.00011281,2]
[353171308,1739623846964,-500.0,0.00011281,2]
[353171309,1739623846974,-762.22,0.00011281,2]
[353171310,1739623846984,-324.6,0.00011281,2]
[353171311,1739623846993,-834.69,0.00011281,2]
[353171312,1739623847002,-496.16,0.00011281,2]
[353171313,1739623847012,-500.0,0.00011281,2]
[353171314,1739623847021,-1160.76,0.00011281,2]
[353171315,1739623847030,-500.0,0.00011281,2]
[353171316,1739623847040,-512.73,0.00011281,2]
[353171317,1739623847049,-500.0,0.00011281,2]
[353171318,1739623847058,-500.0,0.00011281,2]
[353171319,1739623847067,-500.0,0.00011281,2]
[353171320,1739623847076,-556.46,0.00011281,2]
[353171321,1739623847087,-500.0,0.00011281,2]
[353171322,1739623847096,-2455.8,0.00011281,2]
[353171323,1739623847106,-600.86,0.00011281,2]
[353171324,1739623847116,-500.0,0.00011281,2]
[353171325,1739623847126,-500.0,0.00011281,2]
[353171326,1739623847135,-500.0,0.00011281,2]
[353171327,1739623847144,-720.11,0.00011281,2]
[353171328,1739623847154,-500.0,0.00011281,2]
[353171329,1739623847163,-500.0,0.00011281,2]
[353171330,1739623847173,-1101.14,0.00011281,2]
[353171331,1739623847185,-198.45,0.00011281,2]
[353171332,1739623847195,-660.66,0.00011281,2]
[353171333,1739623847206,-500.0,0.00011281,2]
[353171334,1739623847215,-500.0,0.00011281,2]
[353171335,1739623847225,-500.0,0.00011281,2]
[353171336,1739623847236,-757.7,0.00011281,2]
[353171337,1739623847245,-842.78,0.00011281,2]
[353171338,1739623847255,-500.0,0.00011281,2]
[353171339,1739623847264,-500.0,0.00011281,2]
[353171340,1739623847273,-330.92,0.00011281,2]
[353171341,1739623847283,-500.0,0.00011281,2]
[353171342,1739623847293,-1000.0,0.00011281,2]
[353171343,1739623847303,-500.0,0.00011281,2]
[353171344,1739623847313,-783.12,0.00011281,2]
[353171345,1739623847322,-347.88,0.00011281,2]
[353171346,1739623847332,-507.03,0.00011281,2]
[353171347,1739623847342,-500.0,0.00011281,2]
[353171348,1739623847352,-572.49,0.00011281,2]
[353171349,1739623847362,-500.0,0.00011281,2]
[353171350,1739623847371,-692.48,0.00011281,2]
[353171351,1739623847380,-214.06,0.00011281,2]
[353171352,1739623847390,-500.0,0.00011281,2]
[353171353,1739623847400,-896.64,0.00011281,2]
[353171354,1739623847410,-500.0,0.00011281,2]
[353171355,1739623847420,-500.0,0.00011281,2]
[353171356,1739623847430,-644.72,0.00011281,2]
[353171357,1739623847439,-697.6,0.00011281,2]
[353171358,1739623847450,-500.0,0.00011281,2]
[353171359,1739623847460,-500.0,0.00011281,2]
[353171360,1739623847470,-500.0,0.00011281,2]
[353171361,1739623847480,-500.0,0.00011281,2]
[353171362,1739623847491,-500.0,0.00011281,2]
[353171363,1739623847501,-500.0,0.00011281,2]
[353171364,1739623847511,-500.91,0.00011281,2]
[353171365,1739623847521,-500.0,0.00011281,2]
[353171366,1739623847531,-500.0,0.00011281,2]
[353171367,1739623847542,-500.0,0.00011281,2]
[353171368,1739623847552,-270.83,0.00011281,2]
[353171369,1739623847562,-612.9,0.00011281,2]
[353171370,1739623847572,-699.57,0.00011281,2]
[353171371,1739623847582,-429.00545781,0.00011281,2]
[353171372,1739623847601,-195.06454219,0.00011281,2]
[353171373,1739623847612,-600.6321605,0.00011281,2]
[353171376,1739624016895,283.4,8.505e-05,2]
[353171377,1739624189478,165.63,8.267e-05,2]
[353171378,1739624197979,-7900.0,8.973e-05,2]
[353171379,1739624387057,1500.0,0.0002,120]
[353171389,1739624959623,-9.6672,8.973e-05,2]
[353171390,1739624959646,-5000.0,8.973e-05,2]
[353171396,1739625032267,-900.0,0.00010068,2]
[353171397,1739625032277,-800.0,0.00010068,2]
[353171398,1739625032287,-283.27,0.00010137,2]
[353171399,1739625032297,-1000.0,0.00010322,2]
[353171400,1739625032306,-452.59,0.00010329,2]
[353171401,1739625032316,-283.4,0.00010769,2]
[353171402,1739625032326,-172.3328106,0.00011057,2]
[353171403,1739625032335,-497.1,0.00011135,2]
[353171404,1739625032346,-503.45,0.00011162,2]
[353171405,1739625032355,-500.0,0.00011164,2]
[353171406,1739625032364,-4000.0,0.0001117,2]
[353171407,1739625032373,-420.6435894,0.00011198,2]
[353171408,1739625032400,-77.0564106,0.00011198,2]
[353171409,1739625032410,-300.0,0.000112,4]
[353171412,1739625032420,-154.23531024,0.00011219,2]
[353171414,1739625032432,-351.81468976,0.00011219,2]
[353171416,1739625032441,-500.0,0.00011227,2]
[353171418,1739625032451,-500.0,0.00011227,2]
[353171420,1739625032460,-148.18536024,0.00011227,2]
[353171422,1739625032472,-280.5,0.00011227,2]
[353171423,1739625032490,-71.31463976,0.00011227,2]
[353171424,1739625032499,-209.03673883,0.00011227,2]
[353171454,1739625038102,-290.96326117,0.00011227,2]
[353171455,1739625038111,-500.0,0.00011227,2]
[353171456,1739625038121,-458.5379,0.00011227,2]
[353171457,1739625038130,-494.18,0.00011239,2]
[353171458,1739625038139,-500.0,0.0001128,2]
[353171459,1739625038149,-500.0,0.0001128,2]
[353171460,1739625038161,-406.54,0.0001128,2]
[353171461,1739625038170,-500.0,0.0001128,2]
[353171462,1739625038179,-184.74,0.0001128,2]
[353171463,1739625038188,-477.77376883,0.0001128,2]
[353171464,1739625038320,-22.22623117,0.0001128,2]
[353171465,1739625038329,-496.67448743,0.0001128,2]
[353171470,1739625040049,-499.27,0.00010498,2]
[353171471,1739625040059,-3.32551257,0.0001128,2]
[353171472,1739625040068,-500.0,0.0001128,2]
[353171473,1739625040077,-500.0,0.0001128,2]
[353171474,1739625040086,-500.0,0.0001128,2]
[353171475,1739625040096,-500.0,0.0001128,2]
[353171476,1739625040105,-287.34,0.0001128,2]
[353171477,1739625040115,-500.0,0.0001128,2]
[353171478,1739625040124,-500.0,0.0001128,2]
[353171479,1739625040133,-643.58,0.0001128,2]
[353171480,1739625040142,-500.0,0.0001128,2]
[353171481,1739625040153,-448.55,0.0001128,2]
[353171482,1739625040163,-500.72537632,0.00011281,2]
[353171483,1739625040171,-168.27655016,0.00011281,2]
[353171484,1739625040180,-483.56,0.000113,2]
[353171485,1739625040190,-700.0,0.000113,4]
[353171486,1739625040199,-1570.98505181,0.00011327,2]
[353171487,1739625040209,-240.5485814,0.00011344,2]
[353171488,1739625040218,-150.0,0.00011349,2]
[353171489,1739625040227,-156.680195,0.00011362,2]
[353171490,1739625040237,-152.474415,0.00011362,2]
[353171491,1739625040246,-157.547235,0.00011362,2]
[353171492,1739625040256,-156.543895,0.00011362,2]
[353171493,1739625040265,-500.0,0.00011362,2]
[353171494,1739625040275,-500.0,0.00011362,2]
[353171495,1739625040285,-500.0,0.00011362,2]
[353171496,1739625040295,-500.0,0.00011362,2]
[353171497,1739625040304,-322.74225727,0.00011362,2]
[353171498,1739625040314,-607.78,0.00011362,2]
[353171499,1739625040323,-190.36253746,0.00011362,2]
[353171500,1739625040332,-268.85,0.00011362,2]
[353171501,1739625040342,-500.0,0.00011362,2]
[353171502,1739625040352,-500.0,0.00011362,2]
[353171503,1739625040361,-500.0,0.00011362,2]
[353171504,1739625040371,-500.0,0.00011362,2]
[353171505,1739625040380,-500.0,0.00011362,2]
[353171506,1739625040390,-500.0,0.00011362,2]
[353171507,1739625040399,-500.0,0.00011362,2]
[353171508,1739625040409,-500.0,0.00011362,2]
[353171509,1739625040418,-500.0,0.00011362,2]
[353171510,1739625040428,-500.0,0.00011362,2]
[353171511,1739625040437,-500.0,0.00011362,2]
[353171512,1739625040447,-500.0,0.00011362,2]
[353171513,1739625040456,-500.0,0.00011362,2]
[353171514,1739625040465,-500.0,0.00011362,2]
[353171515,1739625040474,-500.0,0.00011362,2]
[353171516,1739625040483,-500.0,0.00011362,2]
[353171517,1739625040493,-500.0,0.00011362,2]
[353171518,1739625040502,-500.0,0.00011362,2]
[353171519,1739625040511,-522.16167733,0.00011362,2]
[353171520,1739625040520,-500.0,0.00011362,2]
[353171521,1739625040529,-500.0,0.00011362,2]
[353171522,1739625040538,-500.0,0.00011362,2]
[353171523,1739625040548,-503.5492988,0.00011362,2]
[353171524,1739625040557,-500.0,0.00011362,2]
[353171525,1739625040566,-505.97324159,0.00011362,2]
[353171526,1739625040575,-500.0,0.00011362,2]
[353171527,1739625040584,-500.0,0.00011362,2]
[353171528,1739625040593,-500.0,0.00011362,2]
[353171529,1739625040602,-523.11958217,0.00011362,2]
[353171530,1739625040611,-500.0,0.00011362,2]
[353171531,1739625040621,-500.0,0.00011362,2]
[353171532,1739625040630,-500.0,0.00011362,2]
[353171533,1739625040639,-500.0,0.00011362,2]
[353171534,1739625040648,-500.0,0.00011362,2]
[353171535,1739625040658,-500.0,0.00011362,2]
[353171536,1739625040667,-500.0,0.00011362,2]
[353171537,1739625040676,-500.0,0.00011362,2]
[353171538,1739625040685,-500.0,0.00011362,2]
[353171539,1739625040694,-500.0,0.00011362,2]
[353171540,1739625040703,-508.6192946,0.00011362,2]
[353171541,1739625040712,-500.0,0.00011362,2]
[353171542,1739625040721,-550.57,0.00011362,2]
[353171543,1739625040730,-500.0,0.00011362,2]
[353171544,1739625040739,-500.0,0.00011362,2]
[353171545,1739625040748,-500.0,0.00011362,2]
[353171546,1739625040757,-500.0,0.00011362,2]
[353171547,1739625040766,-500.0,0.00011362,2]
[353171548,1739625040775,-500.0,0.00011362,2]
[353171549,1739625040784,-500.0,0.00011362,2]
[353171550,1739625040793,-500.0,0.00011362,2]
[353171551,1739625040803,-1610.46,0.00011362,2]
[353171552,1739625040812,-500.0,0.00011362,2]
[353171553,1739625040821,-500.0,0.00011362,2]
[353171554,1739625040831,-500.0,0.00011362,2]
[353171555,1739625040842,-500.93870448,0.00011362,2]
[353171556,1739625040851,-500.0,0.00011362,2]
[353171557,1739625040861,-500.0,0.00011362,2]
[353171558,1739625040870,-500.0,0.00011362,2]
[353171559,1739625040881,-501.77659537,0.00011362,2]
[353171560,1739625040890,-500.0,0.00011362,2]
[353171561,1739625040900,-500.0,0.00011362,2]
[353171562,1739625040910,-500.0,0.00011362,2]
[353171563,1739625040920,-500.0,0.00011362,2]
[353171564,1739625040929,-500.58157741,0.00011362,2]
[353171565,1739625040939,-500.0,0.00011362,2]
[353171566,1739625040948,-500.0,0.00011362,2]
[353171567,1739625040958,-500.0,0.00011362,2]
[353171568,1739625040968,-500.0,0.00011362,2]
[353171569,1739625040977,-500.0,0.00011362,2]
[353171570,1739625040986,-500.0,0.00011362,2]
[353171571,1739625040995,-500.0,0.00011362,2]
[353171572,1739625041005,-500.0,0.00011362,2]
[353171573,1739625041016,-500.0,0.00011362,2]
[353171574,1739625041025,-500.0,0.00011362,2]
[353171575,1739625041034,-238.26,0.00011362,2]
[353171576,1739625041044,-500.0,0.00011362,2]
[353171577,1739625041053,-203.92017568,0.00011362,2]
[353171578,1739625041063,-500.0,0.00011362,2]
[353171579,1739625041073,-500.0,0.00011362,2]
[353171580,1739625041082,-524.24,0.00011362,2]
[353171581,1739625041091,-264.06,0.00011362,2]
[353171582,1739625041101,-500.0,0.00011362,2]
[353171583,1739625041110,-500.0,0.00011362,2]
[353171584,1739625041120,-500.0,0.00011362,2]
[353171585,1739625041129,-500.0,0.00011362,2]
[353171586,1739625041139,-474.76,0.00011362,2]
[353171587,1739625041149,-539.5499241,0.00011362,2]
[353171588,1739625041164,-500.0,0.00011362,2]
[353171589,1739625041173,-500.0,0.00011362,2]
[353171590,1739625041183,-495.27,0.00011362,2]
[353171591,1739625041193,-500.0,0.00011362,2]
[353171592,1739625041203,-222.88,0.00011362,2]
[353171593,1739625041212,-500.0,0.00011362,2]
[353171594,1739625041222,-500.0,0.00011362,2]
[353171595,1739625041233,-158.61,0.00011362,2]
[353171596,1739625041242,-500.0,0.00011362,2]
[353171597,1739625041252,-500.0,0.00011362,2]
[353171598,1739625041262,-500.0,0.00011362,2]
[353171599,1739625041271,-373.07,0.00011362,2]
[353171600,1739625041281,-500.0,0.00011362,2]
[353171601,1739625041290,-372.78,0.00011362,2]
[353171602,1739625041300,-500.0,0.00011362,2]
[353171603,1739625041308,-500.0,0.00011362,2]
[353171604,1739625041318,-500.0,0.00011362,2]
[353171605,1739625041328,-500.0,0.00011362,2]
[353171606,1739625041337,-500.0,0.00011362,2]
[353171607,1739625041346,-519.63,0.00011362,2]
[353171608,1739625041356,-500.0,0.00011362,2]
[353171609,1739625041366,-500.0,0.00011362,2]
[353171610,1739625041376,-500.0,0.00011362,2]
[353171611,1739625041386,-500.0,0.00011362,2]
[353171612,1739625041396,-500.0,0.00011362,2]
[353171613,1739625041406,-740.73,0.00011362,2]
[353171614,1739625041415,-500.0,0.00011362,2]
[353171615,1739625041425,-500.0,0.00011362,2]
[353171616,1739625041436,-277.89,0.00011362,2]
[353171617,1739625041445,-500.0,0.00011362,2]
[353171618,1739625041454,-500.0,0.00011362,2]
[353171619,1739625041464,-500.0,0.00011362,2]
[353171620,1739625041473,-500.0,0.00011362,2]
[353171621,1739625041483,-1379.29,0.00011362,2]
[353171622,1739625041492,-685.36,0.00011362,2]
[353171623,1739625041501,-500.0,0.00011362,2]
[353171624,1739625041511,-627.03,0.00011362,2]
[353171625,1739625041520,-901.07,0.00011362,2]
[353171626,1739625041530,-667.71,0.00011362,2]
[353171627,1739625041540,-500.0,0.00011362,2]
[353171628,1739625041549,-500.0,0.00011362,2]
[353171629,1739625041559,-575.82,0.00011362,2]
[353171630,1739625041568,-545.38,0.00011362,2]
[353171631,1739625041578,-500.0,0.00011362,2]
[353171632,1739625041587,-799.91,0.00011362,2]
[353171633,1739625041596,-846.26,0.00011362,2]
[353171634,1739625041606,-500.0,0.00011362,2]
[353171635,1739625041616,-500.0,0.00011362,2]
[353171636,1739625041626,-500.0,0.00011362,2]
[353171637,1739625041635,-500.0,0.00011362,2]
[353171638,1739625041644,-633.13,0.00011362,2]
[353171639,1739625041654,-500.0,0.00011362,2]
[353171640,1739625041663,-750.15,0.00011362,2]
[353171641,1739625041673,-500.0,0.00011362,2]
[353171642,1739625041682,-500.0,0.00011362,2]
[353171643,1739625041692,-500.0,0.00011362,2]
[353171644,1739625041701,-602.17,0.00011362,2]
[353171645,1739625041710,-1112.4,0.00011362,2]
[353171646,1739625041719,-500.0,0.00011362,2]
[353171647,1739625041728,-500.0,0.00011362,2]
[353171648,1739625041738,-807.67,0.00011362,2]
[353171649,1739625041748,-500.0,0.00011362,2]
[353171650,1739625041757,-869.08,0.00011362,2]
[353171651,1739625041766,-2682.2,0.00011362,2]
[353171652,1739625041775,-690.1,0.00011362,2]
[353171653,1739625041785,-924.08,0.00011362,2]
[353171654,1739625041795,-750.49,0.00011362,2]
[353171655,1739625041804,-1872.19,0.00011362,2]
[353171656,1739625041813,-500.0,0.00011362,2]
[353171657,1739625041823,-500.0,0.00011362,2]
[353171658,1739625041832,-500.0,0.00011362,2]
[353171659,1739625041842,-837.12,0.00011362,2]
[353171660,1739625041851,-500.0,0.00011362,2]
[353171661,1739625041860,-663.63,0.00011362,2]
[353171662,1739625041869,-500.0,0.00011362,2]
[353171663,1739625041879,-781.62,0.00011362,2]
[353171664,1739625041888,-764.14,0.00011362,2]
[353171665,1739625041897,-500.0,0.00011362,2]
[353171666,1739625041907,-500.0,0.00011362,2]
[353171667,1739625041917,-516.09,0.00011362,2]
[353171668,1739625041926,-1055.26,0.00011362,2]
[353171669,1739625041936,-726.13,0.00011362,2]
[353171670,1739625041945,-500.0,0.00011362,2]
[353171671,1739625041954,-984.35,0.00011362,2]
[353171672,1739625041964,-500.0,0.00011362,2]
[353171673,1739625041973,-912.46,0.00011362,2]
[353171674,1739625041983,-500.0,0.00011362,2]
[353171675,1739625041991,-617.86,0.00011362,2]
[353171676,1739625042001,-500.0,0.00011362,2]
[353171677,1739625042010,-528.97,0.00011362,2]
[353171678,1739625042020,-500.0,0.00011362,2]
[353171679,1739625042030,-958.45,0.00011362,2]
[353171680,1739625042040,-314.13,0.00011362,2]
[353171681,1739625042050,-500.0,0.00011362,2]
[353171682,1739625042059,-500.0,0.00011362,2]
[353171683,1739625042070,-500.0,0.00011362,2]
[353171684,1739625042080,-1176.81,0.00011362,2]
[353171685,1739625042089,-546.5,0.00011362,2]
[353171686,1739625042099,-822.12,0.00011362,2]
[353171687,1739625042108,-207.6591349,0.00011362,2]
[353171688,1739625042118,-191.24,0.00011362,2]
[353171689,1739625042127,-500.0,0.00011362,2]
[353171690,1739625042137,-500.0,0.00011362,2]
[353171691,1739625042146,-500.0,0.00011362,2]
[353171692,1739625042160,-627.91,0.00011362,2]
[353171693,1739625042169,-500.0,0.00011362,2]
[353171694,1739625042178,-500.0,0.00011362,2]
[353171695,1739625042188,-500.0,0.00011362,2]
[353171696,1739625042199,-668.53,0.00011362,2]
[353171697,1739625042208,-500.0,0.00011362,2]
[353171698,1739625042218,-500.0,0.00011362,2]
[353171699,1739625042229,-1127.7,0.00011362,2]
[353171700,1739625042436,-859.28,0.00011362,2]
[353171701,1739625042446,-500.0,0.00011362,2]
[353171702,1739625042456,-500.0,0.00011362,2]
[353171703,1739625042465,-616.98,0.00011362,2]
[353171704,1739625042474,-682.98,0.00011362,2]
[353171705,1739625042484,-500.0,0.00011362,2]
[353171706,1739625042493,-500.0,0.00011362,2]
[353171707,1739625042503,-500.0,0.00011362,2]
[353171708,1739625042512,-500.0,0.00011362,2]
[353171709,1739625042522,-500.0,0.00011362,2]
[353171710,1739625042531,-500.0,0.00011362,2]
[353171711,1739625042541,-770.52,0.00011362,2]
[353171712,1739625042555,-500.0,0.00011362,2]
[353171713,1739625042565,-816.12,0.00011362,2]
[353171714,1739625042575,-1203.47,0.00011362,2]
[353171715,1739625042584,-670.42,0.00011362,2]
[353171716,1739625042594,-500.0,0.00011362,2]
[353171717,1739625042603,-296.78,0.00011362,2]
[353171718,1739625042613,-232.5,0.00011362,2]
[353171719,1739625042623,-500.0,0.00011362,2]
[353171720,1739625042632,-500.0,0.00011362,2]
[353171721,1739625042641,-500.0,0.00011362,2]
[353171722,1739625042651,-139.17632783,0.00011362,2]
[353171723,1739625042780,-942.58367217,0.00011362,2]
[353171724,1739625042789,-500.0,0.00011362,2]
[353171726,1739625042799,-68.716818,0.00011362,2]
[353171728,1739625042811,-391.323182,0.00011362,2]
[353171729,1739625042820,-686.57767721,0.00011362,2]
[353171735,1739625043138,-58.22232279,0.00011362,2]
[353171736,1739625043148,-500.0,0.00011362,2]
[353171737,1739625043162,-500.0,0.00011362,2]
[353171738,1739625043171,-1850.23785289,0.00011362,2]
[353171750,1739625081534,0.3328,8.579e-05,2]
[353171751,1739625081558,282.6272,8.579e-05,2]
[353171759,1739625632433,500.0,0.0002,120]
[353171760,1739625640676,500.0,0.0002,120]
[353171761,1739625649963,500.0,0.0002,120]
[353171762,1739625664065,500.0,0.0002,120]
[353171763,1739625672686,500.0,0.0002,120]
[353171768,1739625936939,2000.0,8e-05,2]
[353171769,1739626024835,-300.0,8.835e-05,2]
[353171770,1739626024862,-15600.0,8.836e-05,2]
[353171777,1739626153158,-44.1732,8.836e-05,2]
[353171778,1739626153180,-446.45419371,9e-05,2]
[353171779,1739626153201,-300.0,9.999e-05,2]
[353171780,1739626153224,-1015.46446651,0.0001,2]
[353171781,1739626175473,1239.0375,8.256e-05,2]
[353171788,1739626232431,-320.29041264,8.973e-05,2]
[353171789,1739626232442,-4629.5304814,8.973e-05,2]
[353171790,1739626232454,-50.17910596,8.973e-05,2]
[353171791,1739626232465,-300.0,9.999e-05,2]
[353171792,1739626232474,-13167.88360515,0.0001,2]
[353171793,1739626232485,-4427.42781915,0.0001,2]
[353171794,1739626232496,-42705.60153065,0.0001,2]
[353171795,1739626232506,-504.92,0.00010068,2]
[353171796,1739626232516,-493.87,0.00010068,2]
[353171797,1739626232525,-501.91,0.00010068,2]
[353171798,1739626232535,-506.17,0.00010068,2]
[353171799,1739626232544,-503.39,0.00010068,2]
[353171800,1739626232553,-491.88,0.00010068,2]
[353171801,1739626232562,-490.94,0.00010068,2]
[353171802,1739626232571,-503.68,0.00010068,2]
[353171803,1739626232582,-494.19,0.00010068,2]
[353171804,1739626232592,-507.29,0.00010068,2]
[353171805,1739626232603,-507.77,0.00010068,2]
[353171806,1739626232612,-490.32,0.00010068,2]
[353171807,1739626232622,-499.98,0.00010068,2]
[353171808,1739626232631,-495.37,0.00010068,2]
[353171809,1739626232640,-492.1,0.00010068,2]
[353171810,1739626232649,-498.45,0.00010068,2]
[353171811,1739626232659,-505.82,0.00010068,2]